bitfinex/quotes_SOLUSD_20251117
["timestamp","ask_amount","ask_price","bid_price","bid_amount"]
[1763395474262,11.37197861,136.12,136.03,4.56]
[1763395474568,11.37197861,136.11,136.06,11.37197861]
[1763395474780,0.71,136.1,136.06,11.37197861]
[1763395475070,0.71,136.1,136.05,11.37197861]
[1763395475573,15.93197861,136.12,136.07,11.37197861]
[1763395475751,0.71,136.12,136.09,11.37197861]
[1763395476138,0.71,136.12,136.08,11.37197861]
[1763395476578,0.71,136.12,136.04,9.78882769]
[1763395476873,0.71,136.12,136.09,11.37197861]
[1763395478073,0.71,136.12,136.04,14.45882769]
[1763395478290,4.56,136.15,136.11,11.37197861]
[1763395478451,4.56,136.15,136.13,11.37197861]
[1763395478651,0.69,136.14,135.92,33.55992914]
[1763395478853,0.69,136.14,136.04,9.78882769]
[1763395479057,0.69,136.14,136.1,11.37197861]
[1763395479255,0.69,136.14,136.12,11.37197861]
[1763395479464,0.69,136.14,136.06,4.56]
[1763395479656,0.69,136.14,136.11,11.37197861]
[1763395480095,0.69,136.14,136.07,4.56]
[1763395480374,0.69,136.14,136.11,11.37197861]
[1763395480576,11.37197861,136.17,136.07,0.11]
[1763395480755,0.69,136.15,136.11,7.50495897]
[1763395480956,8.19495897,136.15,136.1,7.50495897]
[1763395481156,7.50495897,136.14,136.1,7.50495897]
[1763395481462,0.69,136.14,136.11,7.50495897]
[1763395481656,0.69,136.17,136.13,7.50495897]
[1763395481863,7.50495897,136.17,136.12,7.50495897]
[1763395482166,0.69,136.16,136.14,7.50495897]
[1763395482367,0.69,136.16,136.09,9.78882769]
[1763395482368,0.69,136.2,136.15,7.50495897]
[1763395482684,0.69,136.2,136.17,7.50495897]
[1763395483462,8.19495897,136.2,136.15,7.50495897]
[1763395483658,7.50495897,136.19,136.14,7.50495897]
[1763395483971,0.69,136.19,136.15,7.50495897]
[1763395484172,8.19495897,136.18,136.09,9.78882769]
[1763395484377,0.69,136.18,136.1,0.11]
[1763395484581,5.97254017,136.23,136.1,0.11]
[1763395484582,18.12096,136.21,136.16,7.50495897]
[1763395484784,0.69,136.2,136.18,7.50495897]
[1763395484964,0.69,136.2,136.13,9.78882769]
[1763395484965,0.69,136.2,136.12,14.45882769]
[1763395485164,0.69,136.2,136.18,7.50495897]
[1763395485364,0.69,136.2,136.17,7.50495897]
[1763395486160,8.19495897,136.2,136.16,7.50495897]
[1763395486491,7.50495897,136.19,136.14,7.50495897]
[1763395486788,8.19495897,136.19,136.14,7.50495897]
[1763395486998,4.79409818,136.2,136.09,9.89882769]
[1763395486999,0.69,136.18,136.09,9.89882769]
[1763395487176,8.19495897,136.18,136.08,9.78882769]
[1763395487375,8.19495897,136.18,136.13,7.50495897]
[1763395487564,0.69,136.17,136.13,7.50495897]
[1763395487771,0.69,136.19,136.16,7.50495897]
[1763395488098,0.69,136.19,136.17,7.50495897]
[1763395488302,0.69,136.22,136.18,7.50495897]
[1763395488480,13.27353445,136.23,136.18,7.50495897]
[1763395488666,4.80228932,136.22,136.18,7.50495897]
[1763395488861,0.69,136.22,136.12,9.89882769]
[1763395489164,0.69,136.21,136.18,7.50495897]
[1763395489368,4.80228932,136.23,136.2,7.50495897]
[1763395489568,0.69,136.23,136.21,7.50495897]
[1763395489796,0.69,136.23,136.2,7.50495897]
[1763395490165,0.69,136.23,136.19,7.50495897]
[1763395490562,7.50495897,136.22,136.1,4.65]
[1763395490868,4.8037673,136.22,136.17,7.50495897]
[1763395491060,0.69,136.21,136.17,7.50495897]
[1763395491264,5.77229532,136.21,136.16,7.50495897]
[1763395491471,13.27725429,136.21,136.16,7.50495897]
[1763395491676,10.57946347,136.2,136.16,7.50495897]
[1763395491901,5.49630871,136.2,136.16,7.50495897]
[1763395492108,0.69,136.19,136.11,18.23096]
[1763395492288,5.49630871,136.22,136.18,7.50495897]
[1763395492605,0.69,136.22,136.2,7.50495897]
[1763395492808,4.56,136.24,136.21,7.50495897]
[1763395492984,4.56,136.24,136.22,7.50495897]
[1763395493186,0.69,136.23,136.21,7.50495897]
[1763395493589,0.69,136.23,136.2,7.50495897]
[1763395494005,0.69,136.23,136.19,7.50495897]
[1763395494185,5.50126934,136.23,136.2,7.50495897]
[1763395494883,0.69,136.22,136.2,7.50495897]
[1763395495082,4.56,136.24,136.21,7.50495897]
[1763395495302,5.25,136.24,136.21,7.50495897]
[1763395495606,0.69,136.23,136.21,7.50495897]
[1763395495784,4.56,136.24,136.21,7.50495897]
[1763395495977,17.29378666,136.22,136.06,0.71]
[1763395496180,9.78882769,136.14,136.02,0.71]
[1763395496382,9.78882769,136.14,136.03,7.50495897]
[1763395496383,7.50495897,136.07,136.03,7.50495897]
[1763395496598,7.50495897,136.07,136.0,15.71]
[1763395496817,8.19495897,136.08,136.03,7.50495897]
[1763395496994,12.53616618,136.07,136.0,15.71]
[1763395497315,7.50495897,136.07,136.03,7.50495897]
[1763395497607,0.69,136.07,136.0,23.21495897]
[1763395497780,8.19495897,136.07,136.0,23.21495897]
[1763395498280,4.81126934,136.1,136.04,7.50495897]
[1763395498491,7.50495897,136.1,136.04,7.50495897]
[1763395498889,13.07664421,136.1,136.04,13.78664421]
[1763395499287,13.07664421,136.09,136.03,13.07664421]
[1763395499484,13.07664421,136.07,136.01,0.71]
[1763395499685,13.07664421,136.06,136.01,0.71]
[1763395499889,13.07664421,136.04,136.0,15.0]
[1763395500200,13.07664421,136.03,136.0,15.0]
[1763395500398,0.69,136.03,136.0,15.0]
[1763395500623,13.76664421,136.02,136.0,15.0]
[1763395500924,5.48753512,136.01,136.0,14.24]
[1763395501091,13.66664421,136.01,136.0,14.24]
[1763395501293,46.58442031,136.01,136.0,14.14]
[1763395501532,64.44597535,136.01,136.0,14.14]
[1763395501826,64.44597535,136.01,135.99,1.93593088]
[1763395501827,35.94211611,136.0,135.99,1.93593088]
[1763395501988,18.12096,135.97,135.9,0.1]
[1763395502330,18.12096,135.99,135.89,13.78664421]
[1763395502632,18.12096,135.99,135.86,0.71]
[1763395502633,13.07664421,135.95,135.86,0.71]
[1763395503089,17.86277804,135.95,135.86,0.71]
[1763395503290,17.86277804,135.95,135.83,5.27]
[1763395503291,22.86644206,135.95,135.83,5.27]
[1763395503495,22.86644206,135.95,135.84,13.07664421]
[1763395503720,22.86644206,135.95,135.87,0.71]
[1763395503919,18.12096,135.92,135.83,0.71]
[1763395504113,14.35412478,135.91,135.83,0.71]
[1763395504414,22.68096,135.91,135.83,0.71]
[1763395504620,13.07664421,135.86,135.83,0.71]
[1763395504820,4.56,135.91,135.83,0.71]
[1763395505003,13.07664421,135.92,135.86,13.07664421]
[1763395505199,13.07664421,135.92,135.83,18.83096]
[1763395505200,13.07664421,135.94,135.88,13.07664421]
[1763395505523,13.07664421,135.97,135.92,13.07664421]
[1763395505722,13.07664421,135.93,135.82,9.78882769]
[1763395505912,13.07664421,135.9,135.88,0.71]
[1763395506214,18.12096,135.92,135.86,0.71]
[1763395506417,18.12096,135.92,135.84,0.7]
[1763395506803,13.07664421,135.87,135.84,0.7]
[1763395507001,4.56,135.93,135.78,9.78882769]
[1763395507002,18.12096,135.9,135.8,0.7]
[1763395507189,4.58,135.89,135.79,0.7]
[1763395507393,4.58,135.89,135.7,1.93593088]
[1763395507394,52.0,135.85,135.72,0.7]
[1763395507593,13.07664421,135.76,135.72,0.7]
[1763395507825,18.12096,135.8,135.72,0.7]
[1763395507826,13.07664421,135.75,135.72,0.7]
[1763395508022,4.6,135.79,135.72,0.7]
[1763395508321,4.6,135.79,135.7,1.93593088]
[1763395508322,18.12096,135.77,135.7,1.93593088]
[1763395508508,13.07664421,135.72,135.7,1.93593088]
[1763395508822,13.26914331,135.75,135.71,0.7]
[1763395509021,13.26914331,135.72,135.7,1.93593088]
[1763395509222,4.6,135.73,135.7,1.93593088]
[1763395509524,13.26914331,135.71,135.7,1.93593088]
[1763395510427,18.12096,135.73,135.7,1.93593088]
[1763395510604,13.26914331,135.71,135.7,1.93593088]
[1763395510804,18.12096,135.73,135.7,1.93593088]
[1763395511000,4.6,135.76,135.7,1.93593088]
[1763395511196,9.98042588,135.83,135.71,0.7]
[1763395511430,4.6,135.83,135.74,13.26914331]
[1763395511605,10.15718499,135.9,135.75,18.12096]
[1763395511937,13.26914331,135.82,135.75,0.7]
[1763395512224,13.26914331,135.84,135.79,13.26914331]
[1763395512543,13.26914331,135.84,135.76,0.7]
[1763395512544,4.6,135.89,135.82,13.26914331]
[1763395512770,4.6,135.89,135.76,18.82096]
[1763395512771,13.26914331,135.88,135.77,9.78882769]
[1763395513038,13.26914331,135.9,135.8,9.78882769]
[1763395513207,10.15718499,135.94,135.86,13.26914331]
[1763395513399,18.12096,135.92,135.81,0.7]
[1763395513607,13.26914331,135.85,135.81,0.7]
[1763395514038,4.6,135.91,135.82,13.26914331]
[1763395514245,13.26914331,135.86,135.81,0.7]
[1763395514439,13.26914331,135.85,135.8,13.26914331]
[1763395514753,13.26914331,135.85,135.81,0.7]
[1763395515439,18.12096,135.88,135.81,0.7]
[1763395515615,13.26914331,135.85,135.81,0.7]
[1763395515822,13.26914331,135.87,135.82,13.26914331]
[1763395516038,13.26914331,135.85,135.79,0.7]
[1763395516354,18.12096,135.88,135.8,13.26914331]
[1763395516526,13.26914331,135.85,135.79,0.7]
[1763395516727,13.26914331,135.85,135.79,13.96914331]
[1763395516936,13.26914331,135.84,135.79,13.96914331]
[1763395517151,13.26914331,135.85,135.8,0.7]
[1763395517445,13.26914331,135.86,135.8,0.7]
[1763395517642,13.26914331,135.87,135.82,13.26914331]
[1763395517949,13.26914331,135.86,135.81,13.26914331]
[1763395518154,13.26914331,135.84,135.8,0.7]
[1763395518354,13.26914331,135.85,135.8,0.7]
[1763395518521,18.12096,135.88,135.82,13.26914331]
[1763395518719,13.26914331,135.87,135.82,13.26914331]
[1763395519027,13.26914331,135.86,135.81,0.66]
[1763395519226,18.12096,135.88,135.79,13.26914331]
[1763395519472,18.12096,135.88,135.82,13.26914331]
[1763395519631,18.12096,135.88,135.83,13.26914331]
[1763395519948,13.26914331,135.87,135.78,0.66]
[1763395520332,13.26914331,135.86,135.78,0.66]
[1763395520537,18.12096,135.88,135.79,13.26914331]
[1763395520857,13.26914331,135.85,135.79,13.26914331]
[1763395521026,4.6,135.87,135.73,9.78882769]
[1763395521229,4.6,135.87,135.8,13.26914331]
[1763395521424,13.26914331,135.86,135.81,13.26914331]
[1763395521728,18.12096,135.87,135.82,13.26914331]
[1763395521943,13.26914331,135.86,135.81,13.26914331]
[1763395522156,13.26914331,135.86,135.7,1.93593088]
[1763395522157,4.6,135.86,135.7,1.93593088]
[1763395522341,18.12096,135.82,135.74,13.26914331]
[1763395522540,13.26914331,135.81,135.75,13.26914331]
[1763395522848,50.0,135.88,135.75,13.26914331]
[1763395522849,4.6,135.89,135.8,13.26914331]
[1763395523052,35.99010331,135.89,135.76,5.26]
[1763395523351,13.26914331,135.88,135.77,0.66]
[1763395523555,18.12096,135.86,135.81,13.26914331]
[1763395523865,4.6,135.89,135.83,13.26914331]
[1763395524030,17.86914331,135.89,135.84,13.26914331]
[1763395524232,13.26914331,135.94,135.83,4.6]
[1763395524534,2.0,135.99,135.88,13.26914331]
[1763395524535,13.26914331,135.93,135.88,13.26914331]
[1763395524747,10.15718499,136.0,135.92,13.26914331]
[1763395524748,13.26914331,135.97,135.92,13.26914331]
[1763395524928,13.26914331,135.97,135.85,10.44882769]
[1763395525129,13.26914331,135.96,135.86,0.66]
[1763395525526,18.12096,135.95,135.76,9.78882769]
[1763395525777,18.12096,135.95,135.87,13.26914331]
[1763395526058,13.26914331,135.92,135.87,13.26914331]
[1763395526353,9.78882769,135.97,135.88,13.26914331]
[1763395526561,13.26914331,135.93,135.88,13.26914331]
[1763395526770,13.26914331,135.93,135.88,13.92914331]
[1763395527140,13.26914331,135.91,135.72,13.26914331]
[1763395527455,4.6,135.92,135.81,0.66]
[1763395527656,13.26914331,135.87,135.82,13.26914331]
[1763395527958,13.26914331,135.88,135.83,13.26914331]
[1763395528254,18.12096,135.89,135.82,13.26914331]
[1763395528464,13.26914331,135.88,135.81,0.66]
[1763395528662,13.26914331,135.88,135.83,13.26914331]
[1763395528853,4.6,135.92,135.87,13.26914331]
[1763395529057,13.26914331,135.91,135.84,0.66]
[1763395529250,13.26914331,135.91,135.86,13.26914331]
[1763395529562,18.12096,135.94,135.88,13.26914331]
[1763395529767,31.39010331,135.95,135.9,13.26914331]
[1763395529947,4.6,135.96,135.91,13.26914331]
[1763395530274,4.6,135.96,135.92,13.26914331]
[1763395530446,4.6,135.96,135.92,13.92914331]
[1763395530764,13.26914331,135.93,135.87,0.66]
[1763395530970,13.26914331,135.93,135.85,0.66]
[1763395531147,13.26914331,135.91,135.86,13.26914331]
[1763395531468,13.26914331,135.93,135.88,13.26914331]
[1763395531766,13.26914331,135.94,135.89,13.26914331]
[1763395531967,13.26914331,135.95,135.9,13.26914331]
[1763395532142,13.26914331,135.94,135.87,0.66]
[1763395532342,13.26914331,135.92,135.87,13.92914331]
[1763395532548,22.72096,135.96,135.88,13.26914331]
[1763395532839,22.72096,135.96,135.91,13.26914331]
[1763395533039,13.26914331,135.95,135.9,13.26914331]
[1763395533237,4.6,135.96,135.91,13.26914331]
[1763395533570,13.26914331,135.98,135.92,13.26914331]
[1763395533770,4.6,135.99,135.92,13.26914331]
[1763395533970,4.6,135.99,135.93,13.92914331]
[1763395534262,13.26914331,135.98,135.93,13.26914331]
[1763395534439,13.26914331,135.98,135.92,13.26914331]
[1763395534636,13.26914331,135.98,135.91,0.66]
[1763395534841,22.72096,135.99,135.89,0.66]
[1763395535048,13.26914331,135.96,135.91,13.26914331]
[1763395535244,13.26914331,135.97,135.89,0.66]
[1763395535450,13.26914331,135.97,135.91,13.26914331]
[1763395536148,13.26914331,135.97,135.91,0.66]
[1763395536348,13.26914331,135.95,135.89,13.26914331]
[1763395536553,22.72096,135.94,135.88,13.91914331]
[1763395536766,13.26914331,135.93,135.88,13.91914331]
[1763395536982,13.26914331,135.91,135.84,0.65]
[1763395537279,13.26914331,135.93,135.87,13.26914331]
[1763395537655,4.6,135.94,135.89,13.26914331]
[1763395537879,4.6,135.94,135.89,13.91914331]
[1763395538188,4.6,135.94,135.9,0.65]
[1763395538388,4.70537809,135.96,135.9,13.91914331]
[1763395538751,13.26914331,135.95,135.9,13.26914331]
[1763395539066,13.26914331,135.93,135.88,13.26914331]
[1763395539266,4.71833892,135.92,135.86,0.65]
[1763395539477,4.71833892,135.92,135.72,34.8562464]
[1763395539478,13.26914331,135.9,135.81,0.65]
[1763395539753,22.83929892,135.92,135.84,13.26914331]
[1763395539754,9.68964382,135.89,135.84,13.26914331]
[1763395539971,13.26914331,135.9,135.84,13.26914331]
[1763395540158,4.71833892,135.89,135.84,0.65]
[1763395540349,9.70669198,135.88,135.86,13.26914331]
[1763395540552,4.71833892,135.9,135.87,13.26914331]
[1763395540861,4.71833892,135.91,135.88,13.26914331]
[1763395541079,9.70684304,135.9,135.88,13.26914331]
[1763395541384,9.71847404,135.89,135.85,0.65]
[1763395541586,9.71847404,135.88,135.86,13.26914331]
[1763395541878,4.75697563,135.87,135.85,0.65]
[1763395542064,19.27657488,135.91,135.85,13.26914331]
[1763395542065,18.02611894,135.9,135.85,13.26914331]
[1763395542264,15.76365329,135.89,135.83,0.65]
[1763395542464,15.76365329,135.88,135.85,13.26914331]
[1763395542802,9.75622172,135.87,135.84,13.26914331]
[1763395543082,9.75622172,135.86,135.84,13.26914331]
[1763395543280,9.77568118,135.85,135.79,9.78882769]
[1763395543457,9.77568118,135.85,135.7,38.23251075]
[1763395543458,9.77568118,135.84,135.73,9.78882769]
[1763395543659,9.77568118,135.83,135.75,9.78882769]
[1763395543864,6.00743157,135.84,135.75,27.90978769]
[1763395543865,9.77568118,135.82,135.75,27.90978769]
[1763395544185,9.77460186,135.81,135.76,5.23]
[1763395544382,6.00743157,135.82,135.76,0.65]
[1763395544383,9.78568765,135.8,135.76,0.65]
[1763395544553,9.78568765,135.79,135.77,0.65]
[1763395544758,4.75697563,135.78,135.77,0.65]
[1763395545053,4.7841671,135.78,135.77,0.65]
[1763395545278,9.81538524,135.78,135.77,0.65]
[1763395545671,9.81538524,135.78,135.77,13.91914331]
[1763395545985,4.7841671,135.78,135.77,13.91914331]
[1763395546182,9.81500689,135.78,135.77,0.65]
[1763395546561,9.81500689,135.78,135.77,13.91914331]
[1763395546890,17.62387171,135.78,135.72,0.65]
[1763395547065,15.79413097,135.77,135.76,13.26914331]
[1763395547265,15.79413097,135.77,135.73,0.65]
[1763395547470,15.79413097,135.76,135.74,13.26914331]
[1763395547681,9.81500689,135.75,135.74,13.26914331]
[1763395547885,9.81500689,135.75,135.74,13.91914331]
[1763395548278,9.81500689,135.75,135.74,0.65]
[1763395548477,9.81500689,135.75,135.74,13.91914331]
[1763395548680,9.09500689,135.75,135.74,13.91914331]
[1763395548992,8.37500689,135.75,135.74,13.91914331]
[1763395549167,5.97912408,135.81,135.74,23.707971]
[1763395549370,0.69,135.83,135.75,14.36882769]
[1763395549371,5.02784334,135.8,135.75,14.36882769]
[1763395549573,0.69,135.87,135.8,9.78882769]
[1763395549574,5.97912408,135.85,135.8,9.78882769]
[1763395549804,5.02674203,135.84,135.8,14.36882769]
[1763395549962,5.97912408,135.9,135.83,13.26914331]
[1763395550163,4.95367544,135.89,135.82,9.78882769]
[1763395550394,4.95367544,135.88,135.82,9.78882769]
[1763395550603,5.97912408,135.94,135.86,9.78882769]
[1763395550767,4.95599412,135.93,135.87,4.58]
[1763395550966,4.95599412,135.92,135.87,4.58]
[1763395551292,4.95599412,135.92,135.78,18.41104623]
[1763395551293,4.95299975,135.91,135.9,13.26914331]
[1763395551593,4.95299975,135.91,135.88,13.26914331]
[1763395551795,4.95299975,135.9,135.89,13.26914331]
[1763395552094,5.64299975,135.93,135.89,13.26914331]
[1763395552295,4.95299975,135.92,135.9,13.26914331]
[1763395552886,0.69,135.96,135.91,13.10542815]
[1763395553090,4.94363356,135.95,135.86,18.12096]
[1763395553275,5.63363356,135.94,135.9,13.10542815]
[1763395553476,4.94363356,135.93,135.9,13.10542815]
[1763395553673,5.63363356,135.93,135.9,13.10542815]
[1763395553877,0.69,135.93,135.9,13.10542815]
[1763395554389,0.69,135.93,135.89,13.10542815]
[1763395554617,0.69,135.93,135.85,4.58]
[1763395554768,5.58750533,135.93,135.81,18.12096]
[1763395554969,4.89750533,135.92,135.89,13.10542815]
[1763395555352,0.69,135.93,135.89,13.10542815]
[1763395555517,0.69,135.92,135.89,13.10542815]
[1763395556518,4.90327954,135.93,135.86,9.78882769]
[1763395556670,13.10542815,135.95,135.9,13.10542815]
[1763395556871,5.59390317,135.94,135.9,13.10542815]
[1763395557097,5.59390317,135.94,135.86,9.78882769]
[1763395557295,0.69,135.96,135.86,9.78882769]
[1763395557492,0.69,135.96,135.85,4.58]
[1763395557493,23.71817004,135.96,135.85,4.58]
[1763395557801,18.01263819,135.95,135.9,13.10542815]
[1763395557977,4.90721004,135.94,135.92,13.10542815]
[1763395558293,0.69,135.95,135.85,4.58]
[1763395558294,0.69,135.95,135.89,4.58]
[1763395558501,0.69,135.95,135.92,13.10542815]
[1763395558668,0.69,135.98,135.94,13.10542815]
[1763395558873,0.69,135.97,135.94,13.10542815]
[1763395559083,0.69,135.97,135.87,18.12096]
[1763395559419,13.10542815,135.94,135.86,4.58]
[1763395559626,13.10542815,135.95,135.89,13.10542815]
[1763395559791,4.90888592,135.94,135.89,13.10542815]
[1763395559984,0.69,135.94,135.9,13.10542815]
[1763395560189,0.69,135.94,135.92,13.10542815]
[1763395560388,13.10542815,135.93,135.81,9.78882769]
[1763395560632,14.70053344,135.92,135.75,4.58]
[1763395560927,7.53460908,135.86,135.81,7.53460908]
[1763395561088,7.53460908,135.82,135.77,7.53460908]
[1763395561486,8.22460908,135.81,135.76,7.53460908]
[1763395561695,0.69,135.81,135.71,4.58]
[1763395561896,12.80460908,135.8,135.7,1.93593088]
[1763395562108,4.79633532,135.79,135.73,7.53460908]
[1763395562304,8.22460908,135.79,135.74,7.53460908]
[1763395562603,0.69,135.78,135.76,7.53460908]
[1763395562821,4.58,135.8,135.76,7.53460908]
[1763395562822,0.69,135.79,135.76,7.53460908]
[1763395563202,7.53460908,135.77,135.71,7.53460908]
[1763395563411,18.12096,135.77,135.71,7.53460908]
[1763395563623,7.53460908,135.75,135.7,9.47053996]
[1763395563925,7.53460908,135.74,135.7,1.93593088]
[1763395564229,7.53460908,135.72,135.7,1.93593088]
[1763395564727,5.27,135.71,135.7,1.21593088]
[1763395565536,12.80460908,135.71,135.7,1.21593088]
[1763395565906,5.27,135.71,135.7,1.21593088]
[1763395566120,12.80460908,135.71,135.7,1.21593088]
[1763395566318,30.92556908,135.71,135.7,1.21593088]
[1763395566529,30.92556908,135.71,135.67,0.1]
[1763395566530,9.78882769,135.7,135.67,0.1]
[1763395566741,5.58689073,135.69,135.67,0.1]
[1763395567038,7.53460908,135.68,135.67,0.1]
[1763395567228,7.53460908,135.68,135.51,18.43795291]
[1763395567229,18.12096,135.65,135.56,0.69]
[1763395567527,7.53460908,135.63,135.58,7.53460908]
[1763395567902,8.22460908,135.63,135.58,7.53460908]
[1763395568103,4.58,135.64,135.59,7.53460908]
[1763395568428,5.27,135.64,135.59,7.53460908]
[1763395568641,7.53460908,135.61,135.57,7.53460908]
[1763395568814,0.69,135.61,135.57,7.53460908]
[1763395569139,4.58,135.64,135.58,7.53460908]
[1763395569140,7.53460908,135.63,135.58,7.53460908]
[1763395569516,8.22460908,135.62,135.57,7.53460908]
[1763395569715,0.69,135.62,135.58,7.53460908]
[1763395569919,0.69,135.62,135.54,0.69]
[1763395570236,4.58,135.64,135.54,0.69]
[1763395570237,4.58,135.64,135.6,7.53460908]
[1763395570431,4.58,135.64,135.61,7.53460908]
[1763395570934,102.7,135.67,135.63,7.53460908]
[1763395571230,102.7,135.67,135.6,0.69]
[1763395571435,102.7,135.67,135.64,7.53460908]
[1763395571733,102.7,135.67,135.66,7.53460908]
[1763395572035,0.69,135.66,135.61,7.53460908]
[1763395572331,4.58,135.68,135.62,7.53460908]
[1763395572529,4.58,135.68,135.6,7.53460908]
[1763395572713,4.58,135.68,135.67,7.53460908]
[1763395573816,4.58,135.68,135.65,0.69]
[1763395574136,4.58,135.68,135.67,7.53460908]
[1763395574525,4.58,135.68,135.66,7.53460908]
[1763395574844,4.58,135.68,135.64,7.53460908]
[1763395575038,12.11460908,135.68,135.63,7.53460908]
[1763395575335,4.58,135.68,135.64,7.53460908]
[1763395575540,4.58,135.68,135.65,7.53460908]
[1763395575727,0.69,135.71,135.66,7.53460908]
[1763395575933,7.53460908,135.67,135.61,7.53460908]
[1763395576123,12.11460908,135.66,135.61,7.53460908]
[1763395576319,4.58,135.66,135.61,7.53460908]
[1763395576520,4.58,135.66,135.53,0.1]
[1763395576521,4.58,135.66,135.65,7.53460908]
[1763395576727,4.58,135.7,135.65,7.53460908]
[1763395576926,4.58,135.7,135.59,32.48978769]
[1763395577124,8.22460908,135.69,135.61,0.69]
[1763395577528,4.58,135.7,135.67,7.53460908]
[1763395578042,0.7,135.69,135.65,7.53460908]
[1763395578420,4.58,135.7,135.66,7.53460908]
[1763395578821,5.28,135.7,135.66,7.53460908]
[1763395579132,0.7,135.69,135.63,0.7]
[1763395579440,10.85718499,135.69,135.53,9.88882769]
[1763395579635,7.53460908,135.67,135.62,7.53460908]
[1763395579835,18.39179407,135.69,135.63,7.53460908]
[1763395580036,7.53460908,135.67,135.62,7.53460908]
[1763395580235,7.53460908,135.63,135.53,0.1]
[1763395580436,23.40096,135.62,135.53,0.1]
[1763395580636,14.36882769,135.61,135.54,7.53460908]
[1763395580817,15.06882769,135.61,135.53,0.8]
[1763395581013,4.58,135.61,135.53,0.8]
[1763395581242,7.53460908,135.59,135.53,0.8]
[1763395581540,7.53460908,135.59,135.53,0.1]
[1763395581746,7.53460908,135.6,135.56,7.53460908]
[1763395581924,4.58,135.61,135.57,7.53460908]
[1763395582125,4.58,135.61,135.54,0.7]
[1763395582342,7.53460908,135.59,135.53,0.1]
[1763395582549,7.53460908,135.57,135.53,0.1]
[1763395582855,4.58,135.56,135.55,7.53460908]
[1763395583025,12.11460908,135.63,135.55,7.53460908]
[1763395583225,12.11460908,135.63,135.53,0.1]
[1763395583226,5.23377289,135.62,135.56,0.7]
[1763395583547,5.23377289,135.62,135.59,7.53460908]
[1763395583746,5.23377289,135.62,135.61,7.53460908]
[1763395584043,0.7,135.61,135.53,0.1]
[1763395584219,5.93279254,135.61,135.54,0.7]
[1763395584424,5.93279254,135.61,135.55,7.53460908]
[1763395584425,5.23279254,135.6,135.55,7.53460908]
[1763395584651,5.23279254,135.6,135.56,7.53460908]
[1763395585152,4.58,135.63,135.53,0.8]
[1763395585153,5.23279254,135.59,135.53,0.8]
[1763395585322,9.81279254,135.58,135.53,0.8]
[1763395585523,5.23279254,135.57,135.53,0.1]
[1763395585719,5.23279254,135.57,135.53,7.63460908]
[1763395585947,5.23279254,135.57,135.53,0.1]
[1763395586225,5.93279254,135.57,135.53,7.63460908]
[1763395586447,5.93279254,135.56,135.43,0.7]
[1763395586621,5.93279254,135.56,135.41,37.94178639]
[1763395586622,5.23279254,135.55,135.46,0.7]
[1763395586823,5.22406093,135.54,135.46,0.7]
[1763395587061,0.7,135.57,135.46,0.7]
[1763395587062,5.22406093,135.53,135.51,7.53460908]
[1763395587260,5.22406093,135.52,135.49,7.53460908]
[1763395587545,5.22056842,135.51,135.46,0.7]
[1763395587750,4.58,135.53,135.47,0.7]
[1763395587921,5.22127515,135.52,135.5,7.53460908]
[1763395588122,0.7,135.6,135.51,7.53460908]
[1763395588466,7.53460908,135.57,135.52,7.53460908]
[1763395588755,5.22096583,135.56,135.53,0.7]
[1763395588923,4.58,135.59,135.55,7.53460908]
[1763395589233,5.21920325,135.58,135.55,7.53460908]
[1763395589428,5.21920325,135.58,135.56,0.7]
[1763395589678,4.58,135.59,135.56,0.7]
[1763395589945,5.21833375,135.58,135.52,0.7]
[1763395590148,5.21833375,135.58,135.54,7.53460908]
[1763395590537,7.53460908,135.57,135.53,8.23460908]
[1763395590741,7.53460908,135.58,135.53,8.23460908]
[1763395590940,5.21998187,135.57,135.53,7.53460908]
[1763395591138,7.53460908,135.54,135.46,0.7]
[1763395591338,4.58,135.53,135.52,7.53460908]
[1763395592322,4.58,135.53,135.51,7.53460908]
[1763395592529,4.58,135.53,135.5,7.53460908]
[1763395592956,4.58,135.53,135.51,8.23460908]